[Event "*** Titled Tuesday Blitz"]
[Site "Chess.com"]
[Date "2020.11.03"]
[Round "2"]
[White "Evachess2006"]
[Black "QuintilianoR"]
[Result "0-1"]
[WhiteElo "1641"]
[BlackElo "2633"]
[TimeControl "180+1"]
[EndTime "10:18:19 PST"]
[Termination "QuintilianoR won on time"]

1. e4 {[%clk 0:02:47.5]} 1... e6 {[%clk 0:02:58.5]} 2. d4 {[%clk 0:02:43.7]}
2... d5 {[%clk 0:02:58.2]} 3. exd5 {[%clk 0:02:44.6]} 3... exd5 {[%clk
0:02:57.6]} 4. Nf3 {[%clk 0:02:45.3]} 4... Nc6 {[%clk 0:02:57.4]} 5. Be2 {[%clk
0:02:45.8]} 5... Bd6 {[%clk 0:02:51.5]} 6. O-O {[%clk 0:02:46.7]} 6... Bg4
{[%clk 0:02:51.1]} 7. Bg5 {[%clk 0:02:44.9]} 7... Nge7 {[%clk 0:02:49.6]} 8. c3
{[%clk 0:02:30.7]} 8... f6 {[%clk 0:02:47.9]} 9. Bh4 {[%clk 0:02:21.3]} 9... Qd7
{[%clk 0:02:45.2]} 10. Bg3 {[%clk 0:02:03.6]} 10... h5 {[%clk 0:02:41.1]} 11.
Bxd6 {[%clk 0:01:52.6]} 11... Qxd6 {[%clk 0:02:42]} 12. Re1 {[%clk 0:01:44.2]}
12... O-O-O {[%clk 0:02:39.9]} 13. Nbd2 {[%clk 0:01:29.9]} 13... Ng6 {[%clk
0:02:35.8]} 14. h3 {[%clk 0:01:12.4]} 14... Nf4 {[%clk 0:01:41.6]} 15. hxg4
{[%clk 0:01:03.6]} 15... hxg4 {[%clk 0:01:39.5]} 16. Ne5 {[%clk 0:00:48.4]}
16... fxe5 {[%clk 0:01:37.5]} 17. Bxg4+ {[%clk 0:00:37.2]} 17... Kb8 {[%clk
0:01:36.5]} 18. Nf3 {[%clk 0:00:22.9]} 18... e4 {[%clk 0:01:30.2]} 19. Ng5
{[%clk 0:00:21.5]} 19... Qg6 {[%clk 0:00:53.1]} 20. g3 {[%clk 0:00:17]} 20...
Nd3 {[%clk 0:00:36]} 21. Ne6 {[%clk 0:00:09.4]} 21... Rde8 {[%clk 0:00:31.3]}
22. Nf4 {[%clk 0:00:07.5]} 22... Nxf4 {[%clk 0:00:31]} 23. gxf4 {[%clk
0:00:07.9]} 23... Ref8 {[%clk 0:00:27.7]} 0-1

[Event "*** Titled Tuesday Blitz"]
[Site "Chess.com"]
[Date "2020.11.03"]
[Round "2"]
[White "rugbyclub"]
[Black "shnitez"]
[Result "0-1"]
[WhiteElo "2204"]
[BlackElo "2533"]
[TimeControl "180+1"]
[EndTime "10:18:19 PST"]
[Termination "shnitez won on time"]

1. d4 {[%clk 0:03:00.5]} 1... Nf6 {[%clk 0:02:59]} 2. Nf3 {[%clk 0:02:59.9]}
2... e6 {[%clk 0:02:58.3]} 3. Bf4 {[%clk 0:02:59.1]} 3... c5 {[%clk 0:02:58.1]}
4. c3 {[%clk 0:02:58.7]} 4... cxd4 {[%clk 0:02:58.3]} 5. cxd4 {[%clk 0:02:58.3]}
5... Qb6 {[%clk 0:02:58.9]} 6. Qc2 {[%clk 0:02:55.6]} 6... Nc6 {[%clk
0:02:57.9]} 7. e3 {[%clk 0:02:55.3]} 7... d5 {[%clk 0:02:57]} 8. Nc3 {[%clk
0:02:54.9]} 8... Bd7 {[%clk 0:02:54.1]} 9. a3 {[%clk 0:02:53.1]} 9... Rc8 {[%clk
0:02:53.7]} 10. Bd3 {[%clk 0:02:53.1]} 10... Na5 {[%clk 0:02:47.5]} 11. O-O
{[%clk 0:02:41.6]} 11... Nb3 {[%clk 0:02:40.3]} 12. Rab1 {[%clk 0:02:34.9]}
12... Be7 {[%clk 0:02:35]} 13. h3 {[%clk 0:02:29.2]} 13... O-O {[%clk
0:02:33.4]} 14. Ne5 {[%clk 0:02:29.8]} 14... Be8 {[%clk 0:02:20.9]} 15. g4
{[%clk 0:02:26.6]} 15... Ne4 {[%clk 0:02:11]} 16. f3 {[%clk 0:02:21.5]} 16...
Ned2 {[%clk 0:02:08.3]} 17. Bxh7+ {[%clk 0:02:20.4]} 17... Kh8 {[%clk
0:02:07.8]} 18. Bd3 {[%clk 0:02:08.2]} 18... Nxb1 {[%clk 0:01:59.8]} 19. Rxb1
{[%clk 0:02:05.9]} 19... Nxd4 {[%clk 0:01:58.6]} 20. Qf2 {[%clk 0:01:47.9]}
20... Nc6 {[%clk 0:01:53]} 21. g5 {[%clk 0:01:45.6]} 21... f5 {[%clk 0:01:35.8]}
22. gxf6 {[%clk 0:01:34.9]} 22... Bxf6 {[%clk 0:01:25.9]} 23. Ng4 {[%clk
0:00:58]} 23... Qd8 {[%clk 0:01:17.3]} 24. Qg3 {[%clk 0:00:38.4]} 24... e5
{[%clk 0:01:04.3]} 25. Nxf6 {[%clk 0:00:38.2]} 25... Qxf6 {[%clk 0:01:01.4]} 26.
Bg5 {[%clk 0:00:38]} 26... Qxf3 {[%clk 0:00:57.5]} 27. Qxf3 {[%clk 0:00:20.8]}
27... Rxf3 {[%clk 0:00:56.8]} 28. Kg2 {[%clk 0:00:21.5]} 28... e4 {[%clk
0:00:51.1]} 29. Be2 {[%clk 0:00:21.2]} 29... Rf5 {[%clk 0:00:50.4]} 30. h4
{[%clk 0:00:19.5]} 30... Ne5 {[%clk 0:00:41.7]} 0-1

[Event "*** Titled Tuesday Blitz"]
[Site "Chess.com"]
[Date "2020.11.03"]
[Round "2"]
[White "hungrycaterpillar4"]
[Black "OldweakGM"]
[Result "0-1"]
[WhiteElo "2564"]
[BlackElo "2864"]
[TimeControl "180+1"]
[EndTime "10:18:20 PST"]
[Termination "OldweakGM won by resignation"]

1. d4 {[%clk 0:03:00.9]} 1... d5 {[%clk 0:02:56.4]} 2. Bf4 {[%clk 0:03:00.9]}
2... Nf6 {[%clk 0:02:55.5]} 3. e3 {[%clk 0:03:01.3]} 3... c5 {[%clk 0:02:56]} 4.
Nf3 {[%clk 0:03:01.5]} 4... Nc6 {[%clk 0:02:53.8]} 5. Nbd2 {[%clk 0:03:01.7]}
5... cxd4 {[%clk 0:02:54.1]} 6. exd4 {[%clk 0:03:01.8]} 6... Bf5 {[%clk
0:02:54.8]} 7. c3 {[%clk 0:03:01.2]} 7... e6 {[%clk 0:02:55.3]} 8. h3 {[%clk
0:02:58.6]} 8... Bd6 {[%clk 0:02:55.3]} 9. Bxd6 {[%clk 0:02:54.7]} 9... Qxd6
{[%clk 0:02:56.2]} 10. Be2 {[%clk 0:02:55.6]} 10... O-O {[%clk 0:02:56.6]} 11.
O-O {[%clk 0:02:56.2]} 11... Rfe8 {[%clk 0:02:57]} 12. Re1 {[%clk 0:02:56.3]}
12... h6 {[%clk 0:02:53.4]} 13. Nf1 {[%clk 0:02:55.8]} 13... Nd7 {[%clk
0:02:53.3]} 14. Ne3 {[%clk 0:02:55.4]} 14... Bg6 {[%clk 0:02:52.9]} 15. Rc1
{[%clk 0:02:51.4]} 15... Rab8 {[%clk 0:02:52.6]} 16. Bf1 {[%clk 0:02:35.9]}
16... a6 {[%clk 0:02:49.2]} 17. Qd2 {[%clk 0:02:26.6]} 17... Be4 {[%clk
0:02:47.6]} 18. Qd1 {[%clk 0:02:22.2]} 18... b5 {[%clk 0:02:46.3]} 19. Bd3
{[%clk 0:02:22.2]} 19... Bxd3 {[%clk 0:02:43.2]} 20. Qxd3 {[%clk 0:02:23.1]}
20... Nf6 {[%clk 0:02:41]} 21. a3 {[%clk 0:02:04.6]} 21... Na5 {[%clk
0:02:37.2]} 22. Ne5 {[%clk 0:02:03.4]} 22... Nc4 {[%clk 0:02:37.5]} 23. N3xc4
{[%clk 0:01:36.8]} 23... bxc4 {[%clk 0:02:37.7]} 24. Qc2 {[%clk 0:01:37.4]}
24... Rb7 {[%clk 0:02:37.5]} 25. Rb1 {[%clk 0:01:31.9]} 25... Reb8 {[%clk
0:02:35.2]} 26. Re2 {[%clk 0:01:32.2]} 26... Nd7 {[%clk 0:02:34.6]} 27. Nxd7
{[%clk 0:01:24.6]} 27... Qxd7 {[%clk 0:02:34.7]} 28. g3 {[%clk 0:01:14.5]} 28...
Rb3 {[%clk 0:02:34.6]} 29. h4 {[%clk 0:01:13.8]} 29... Qb7 {[%clk 0:02:34.4]}
30. Kg2 {[%clk 0:01:02.9]} 30... Rxa3 {[%clk 0:02:33]} 31. g4 {[%clk 0:00:48.3]}
31... Rb3 {[%clk 0:02:22.2]} 32. g5 {[%clk 0:00:48.2]} 32... Qe7 {[%clk
0:02:13.3]} 33. f4 {[%clk 0:00:43.2]} 33... a5 {[%clk 0:01:57.3]} 34. Ra1 {[%clk
0:00:23.6]} 34... Qb7 {[%clk 0:01:49.9]} 35. Ra2 {[%clk 0:00:20.7]} 35... h5
{[%clk 0:01:44.6]} 36. g6 {[%clk 0:00:19.7]} 36... Qe7 {[%clk 0:01:44.6]} 37.
Kg3 {[%clk 0:00:19.6]} 37... Qf6 {[%clk 0:01:42.2]} 38. gxf7+ {[%clk 0:00:17.7]}
38... Qxf7 {[%clk 0:01:42.6]} 39. Rxa5 {[%clk 0:00:09.4]} 39... Rxb2 {[%clk
0:01:39.8]} 40. Qxb2 {[%clk 0:00:10.3]} 40... Qg6+ {[%clk 0:01:39.8]} 41. Kf2
{[%clk 0:00:09.3]} 41... Rxb2 {[%clk 0:01:39]} 42. Rxb2 {[%clk 0:00:10.2]} 42...
Qe4 {[%clk 0:01:37.6]} 43. Rb7 {[%clk 0:00:05.8]} 43... Qxf4+ {[%clk 0:01:36.1]}
44. Kg2 {[%clk 0:00:06.4]} 44... Qg4+ {[%clk 0:01:35.9]} 45. Kf1 {[%clk
0:00:05.8]} 45... Qf3+ {[%clk 0:01:36.3]} 46. Kg1 {[%clk 0:00:05.9]} 46... Qxc3
{[%clk 0:01:36.5]} 47. Raa7 {[%clk 0:00:05.8]} 47... Qxd4+ {[%clk 0:01:36.5]}
48. Kg2 {[%clk 0:00:06.7]} 48... Qg4+ {[%clk 0:01:36.4]} 49. Kf2 {[%clk
0:00:06.8]} 49... Qxh4+ {[%clk 0:01:36.2]} 50. Ke3 {[%clk 0:00:07.7]} 50... Qe4+
{[%clk 0:01:35.7]} 51. Kd2 {[%clk 0:00:07.8]} 51... Qd4+ {[%clk 0:01:36.1]} 52.
Kc2 {[%clk 0:00:07.8]} 52... h4 {[%clk 0:01:36.6]} 0-1

[Event "*** Titled Tuesday Blitz"]
[Site "Chess.com"]
[Date "2020.11.03"]
[Round "2"]
[White "SophieNikoladze"]
[Black "ChSalas"]
[Result "0-1"]
[WhiteElo "2279"]
[BlackElo "2468"]
[TimeControl "180+1"]
[EndTime "10:18:21 PST"]
[Termination "ChSalas won on time"]

1. d4 {[%clk 0:03:00.9]} 1... d5 {[%clk 0:02:57.7]} 2. Nf3 {[%clk 0:03:00.6]}
2... Nf6 {[%clk 0:02:56.4]} 3. e3 {[%clk 0:02:59.4]} 3... c6 {[%clk 0:02:55.3]}
4. Bd3 {[%clk 0:02:57.5]} 4... Bg4 {[%clk 0:02:54.3]} 5. h3 {[%clk 0:02:56.7]}
5... Bxf3 {[%clk 0:02:53.1]} 6. Qxf3 {[%clk 0:02:56.8]} 6... Nbd7 {[%clk
0:02:52.6]} 7. c4 {[%clk 0:02:57]} 7... e5 {[%clk 0:02:50]} 8. dxe5 {[%clk
0:02:51.9]} 8... Nxe5 {[%clk 0:02:48.6]} 9. Qf5 {[%clk 0:02:52.5]} 9... Nxc4
{[%clk 0:02:34.8]} 10. O-O {[%clk 0:02:46]} 10... g6 {[%clk 0:02:24.5]} 11. Qg5
{[%clk 0:02:39.3]} 11... Be7 {[%clk 0:02:14.5]} 12. Bxc4 {[%clk 0:02:35.3]}
12... dxc4 {[%clk 0:02:13]} 13. Na3 {[%clk 0:02:35.3]} 13... Qd5 {[%clk
0:02:05.9]} 14. Qf4 {[%clk 0:02:27.6]} 14... b5 {[%clk 0:01:58.7]} 15. Nc2
{[%clk 0:02:26.1]} 15... O-O {[%clk 0:01:57.2]} 16. Re1 {[%clk 0:02:18.9]} 16...
Ne4 {[%clk 0:01:55.2]} 17. a4 {[%clk 0:02:13.2]} 17... a6 {[%clk 0:01:51.2]} 18.
f3 {[%clk 0:02:03.2]} 18... Nc5 {[%clk 0:01:44.7]} 19. e4 {[%clk 0:01:53.9]}
19... Qe6 {[%clk 0:01:44]} 20. Nd4 {[%clk 0:01:52.4]} 20... Qd7 {[%clk
0:01:42.5]} 21. Rd1 {[%clk 0:00:51.4]} 21... Nd3 {[%clk 0:01:38.9]} 22. Rxd3
{[%clk 0:00:50.3]} 22... cxd3 {[%clk 0:01:39.8]} 23. Be3 {[%clk 0:00:44.7]}
23... c5 {[%clk 0:01:32.5]} 24. Nb3 {[%clk 0:00:37.9]} 24... c4 {[%clk
0:01:31.8]} 25. Nd2 {[%clk 0:00:37.1]} 25... Rfc8 {[%clk 0:01:23.2]} 26. Qe5
{[%clk 0:00:36]} 26... Qc7 {[%clk 0:01:18.3]} 27. Qd4 {[%clk 0:00:31.4]} 27...
Bc5 {[%clk 0:01:16.3]} 28. Qxc5 {[%clk 0:00:29.9]} 28... Qxc5 {[%clk 0:01:15.8]}
29. Bxc5 {[%clk 0:00:30.2]} 29... Rxc5 {[%clk 0:01:15.8]} 30. axb5 {[%clk
0:00:30.4]} 30... Rxb5 {[%clk 0:01:09.8]} 31. Nxc4 {[%clk 0:00:30.5]} 31... Rb4
{[%clk 0:01:09.3]} 32. Ne5 {[%clk 0:00:27.8]} 32... d2 {[%clk 0:01:06.6]} 33.
Nd3 {[%clk 0:00:23.5]} 33... Rb3 {[%clk 0:01:01.9]} 34. Nf2 {[%clk 0:00:21.7]}
34... Rxb2 {[%clk 0:01:00.2]} 35. Nd1 {[%clk 0:00:21.8]} 35... Rc2 {[%clk
0:00:59.7]} 36. Kf1 {[%clk 0:00:21.8]} 36... Rc1 {[%clk 0:00:59.1]} 0-1

[Event "*** Titled Tuesday Blitz"]
[Site "Chess.com"]
[Date "2020.11.03"]
[Round "2"]
[White "boasovietica"]
[Black "jaskol95"]
[Result "1-0"]
[WhiteElo "2530"]
[BlackElo "2309"]
[TimeControl "180+1"]
[EndTime "10:18:25 PST"]
[Termination "boasovietica won by checkmate"]

1. e4 {[%clk 0:03:00.9]} 1... e6 {[%clk 0:02:59]} 2. d4 {[%clk 0:02:58.7]} 2...
d5 {[%clk 0:02:59.5]} 3. Nd2 {[%clk 0:02:55.8]} 3... dxe4 {[%clk 0:02:58.9]} 4.
Nxe4 {[%clk 0:02:55.8]} 4... Bd7 {[%clk 0:02:57.4]} 5. c4 {[%clk 0:02:55.2]}
5... Nf6 {[%clk 0:02:53.8]} 6. Nc3 {[%clk 0:02:47.8]} 6... Bc6 {[%clk
0:02:45.1]} 7. Nf3 {[%clk 0:02:42]} 7... Bb4 {[%clk 0:02:43.3]} 8. Bg5 {[%clk
0:02:42.4]} 8... Nbd7 {[%clk 0:02:38.9]} 9. a3 {[%clk 0:02:25.1]} 9... Bxc3+
{[%clk 0:02:38.1]} 10. bxc3 {[%clk 0:02:26]} 10... h6 {[%clk 0:02:35.4]} 11. Bh4
{[%clk 0:02:23.1]} 11... b6 {[%clk 0:02:29.9]} 12. Bd3 {[%clk 0:02:21.7]} 12...
O-O {[%clk 0:02:25.7]} 13. O-O {[%clk 0:02:16.8]} 13... Bb7 {[%clk 0:02:12.2]}
14. Qe2 {[%clk 0:02:15]} 14... Qe7 {[%clk 0:01:45.3]} 15. Rfe1 {[%clk
0:02:13.3]} 15... Rfe8 {[%clk 0:01:32.7]} 16. a4 {[%clk 0:02:09.8]} 16... a5
{[%clk 0:01:30.2]} 17. Ne5 {[%clk 0:01:58.6]} 17... Qf8 {[%clk 0:01:19.8]} 18.
Rab1 {[%clk 0:01:50.9]} 18... Nxe5 {[%clk 0:01:12.8]} 19. Qxe5 {[%clk
0:01:36.6]} 19... Qe7 {[%clk 0:00:52.9]} 20. c5 {[%clk 0:01:20.1]} 20... Ng4
{[%clk 0:00:16.6]} 21. Qg3 {[%clk 0:01:07.9]} 21... Nf6 {[%clk 0:00:12.3]} 22.
cxb6 {[%clk 0:01:02.1]} 22... cxb6 {[%clk 0:00:13.2]} 23. Rxb6 {[%clk
0:00:59.2]} 23... Rac8 {[%clk 0:00:12.4]} 24. Rxb7 {[%clk 0:00:43.5]} 24... Qxb7
{[%clk 0:00:12.5]} 25. Bxf6 {[%clk 0:00:42.9]} 25... g5 {[%clk 0:00:13.1]} 26.
Qh3 {[%clk 0:00:32.6]} 26... Rxc3 {[%clk 0:00:03.1]} 27. Qxh6 {[%clk 0:00:29.9]}
27... Rxd3 {[%clk 0:00:03.7]} 28. Qh8# {[%clk 0:00:29]} 1-0

[Event "*** Titled Tuesday Blitz"]
[Site "Chess.com"]
[Date "2020.11.03"]
[Round "2"]
[White "davidkalashian"]
[Black "GalperinPlaton"]
[Result "1-0"]
[WhiteElo "2604"]
[BlackElo "2890"]
[TimeControl "180+1"]
[EndTime "10:18:26 PST"]
[Termination "davidkalashian won by resignation"]

1. d4 {[%clk 0:03:00.9]} 1... Nf6 {[%clk 0:02:59.5]} 2. c4 {[%clk 0:02:59.7]}
2... d6 {[%clk 0:03:00.2]} 3. Nc3 {[%clk 0:02:58.5]} 3... Bf5 {[%clk 0:03:00.8]}
4. Nf3 {[%clk 0:02:56.7]} 4... g6 {[%clk 0:03:00.4]} 5. g3 {[%clk 0:02:56]} 5...
Bg7 {[%clk 0:03:00.8]} 6. Bg2 {[%clk 0:02:55.1]} 6... Ne4 {[%clk 0:03:01.4]} 7.
Qb3 {[%clk 0:02:52.8]} 7... Nxc3 {[%clk 0:02:58.2]} 8. bxc3 {[%clk 0:02:49.7]}
8... Be4 {[%clk 0:02:57.3]} 9. O-O {[%clk 0:02:40.1]} 9... O-O {[%clk
0:02:57.1]} 10. d5 {[%clk 0:02:34.2]} 10... Qc8 {[%clk 0:02:53.9]} 11. Be3
{[%clk 0:02:20.8]} 11... Nd7 {[%clk 0:02:48.1]} 12. Bd4 {[%clk 0:02:20.2]} 12...
c6 {[%clk 0:02:18.9]} 13. Rad1 {[%clk 0:01:58.3]} 13... cxd5 {[%clk 0:02:16.6]}
14. cxd5 {[%clk 0:01:58.4]} 14... Nc5 {[%clk 0:02:12]} 15. Qc4 {[%clk
0:01:49.9]} 15... Nd7 {[%clk 0:01:43.8]} 16. Qb3 {[%clk 0:01:48.6]} 16... Qc7
{[%clk 0:01:25.1]} 17. Bh3 {[%clk 0:01:42.5]} 17... Nb6 {[%clk 0:00:57.2]} 18.
Bxg7 {[%clk 0:01:14.4]} 18... Kxg7 {[%clk 0:00:58.1]} 19. Ng5 {[%clk 0:01:13.7]}
19... Bf5 {[%clk 0:00:45.9]} 20. Bxf5 {[%clk 0:01:12.7]} 20... gxf5 {[%clk
0:00:46.8]} 21. Rd4 {[%clk 0:01:06.2]} 21... h6 {[%clk 0:00:38]} 22. Nf3 {[%clk
0:01:00.9]} 22... Rac8 {[%clk 0:00:38.5]} 23. Rc1 {[%clk 0:00:55]} 23... Qc5
{[%clk 0:00:38.5]} 24. Nh4 {[%clk 0:00:53]} 24... Kf6 {[%clk 0:00:36.6]} 25. Rf4
{[%clk 0:00:37.5]} 25... e6 {[%clk 0:00:35.1]} 26. dxe6 {[%clk 0:00:38.4]} 26...
fxe6 {[%clk 0:00:35.4]} 27. e4 {[%clk 0:00:38.7]} 27... Qc6 {[%clk 0:00:05.5]}
28. exf5 {[%clk 0:00:37]} 28... e5 {[%clk 0:00:05.8]} 29. Qe6+ {[%clk
0:00:36.4]} 29... Kg7 {[%clk 0:00:06.4]} 30. Rg4+ {[%clk 0:00:33.3]} 30... Kh8
{[%clk 0:00:07]} 1-0

[Event "*** Titled Tuesday Blitz"]
[Site "Chess.com"]
[Date "2020.11.03"]
[Round "2"]
[White "Promacherr"]
[Black "VinzentSpitzl"]
[Result "1-0"]
[WhiteElo "2671"]
[BlackElo "2329"]
[TimeControl "180+1"]
[EndTime "10:18:27 PST"]
[Termination "Promacherr won on time"]

1. e4 {[%clk 0:03:00.9]} 1... c6 {[%clk 0:02:55.8]} 2. d4 {[%clk 0:03:00.4]}
2... d5 {[%clk 0:02:52.2]} 3. exd5 {[%clk 0:03:01.3]} 3... cxd5 {[%clk
0:02:52.4]} 4. Bf4 {[%clk 0:03:01.4]} 4... Nc6 {[%clk 0:02:51]} 5. c3 {[%clk
0:03:01.7]} 5... g6 {[%clk 0:02:51]} 6. Nd2 {[%clk 0:03:01.7]} 6... Bg7 {[%clk
0:02:51.1]} 7. Ngf3 {[%clk 0:03:02.1]} 7... Nf6 {[%clk 0:02:51.3]} 8. Be2 {[%clk
0:03:02.1]} 8... O-O {[%clk 0:02:51.6]} 9. Ne5 {[%clk 0:03:02.3]} 9... Bf5
{[%clk 0:02:44.2]} 10. O-O {[%clk 0:03:01.9]} 10... Ne4 {[%clk 0:02:39.7]} 11.
Nd3 {[%clk 0:02:56.9]} 11... Re8 {[%clk 0:02:31.9]} 12. Re1 {[%clk 0:02:56.5]}
12... Nxd2 {[%clk 0:02:19.8]} 13. Qxd2 {[%clk 0:02:57.4]} 13... Bxd3 {[%clk
0:02:19.7]} 14. Bxd3 {[%clk 0:02:55.1]} 14... e5 {[%clk 0:02:20.1]} 15. dxe5
{[%clk 0:02:55.5]} 15... Nxe5 {[%clk 0:02:20.4]} 16. Bb5 {[%clk 0:02:55.5]}
16... Re6 {[%clk 0:02:08.4]} 17. Rad1 {[%clk 0:02:52.8]} 17... Nc6 {[%clk
0:02:03.7]} 18. Rxe6 {[%clk 0:02:40.6]} 18... fxe6 {[%clk 0:02:04.6]} 19. Re1
{[%clk 0:02:40.3]} 19... Qf6 {[%clk 0:01:57.2]} 20. Bg5 {[%clk 0:02:29.8]} 20...
Qf7 {[%clk 0:01:49.6]} 21. Qe2 {[%clk 0:02:29.8]} 21... e5 {[%clk 0:01:47]} 22.
Ba4 {[%clk 0:02:26.8]} 22... Re8 {[%clk 0:01:39.4]} 23. Qb5 {[%clk 0:02:22.6]}
23... h6 {[%clk 0:01:32.3]} 24. Bh4 {[%clk 0:02:17.9]} 24... g5 {[%clk
0:01:32.1]} 25. Bg3 {[%clk 0:02:17.1]} 25... Rd8 {[%clk 0:01:28.7]} 26. Bb3
{[%clk 0:02:14.8]} 26... a6 {[%clk 0:01:15.7]} 27. Qb6 {[%clk 0:02:11.9]} 27...
h5 {[%clk 0:00:56.2]} 28. h4 {[%clk 0:02:09]} 28... gxh4 {[%clk 0:00:50.8]} 29.
Bxh4 {[%clk 0:02:09.9]} 29... Rd6 {[%clk 0:00:51.1]} 30. Bg3 {[%clk 0:02:00.7]}
30... Bf6 {[%clk 0:00:47.5]} 31. Qc5 {[%clk 0:01:46.8]} 31... Qd7 {[%clk
0:00:41.5]} 32. Rd1 {[%clk 0:01:44.6]} 32... Ne7 {[%clk 0:00:40.8]} 33. Qe3
{[%clk 0:01:38.3]} 33... Nf5 {[%clk 0:00:35.1]} 34. Qf3 {[%clk 0:01:33.2]} 34...
Nxg3 {[%clk 0:00:35]} 35. Qxg3+ {[%clk 0:01:26.7]} 35... Kh8 {[%clk 0:00:34.4]}
36. Qf3 {[%clk 0:01:26.1]} 36... d4 {[%clk 0:00:11.5]} 37. Qxh5+ {[%clk
0:01:25.1]} 37... Kg7 {[%clk 0:00:11.7]} 38. Rd3 {[%clk 0:01:19.9]} 38... Kf8
{[%clk 0:00:07.6]} 39. Rg3 {[%clk 0:01:18.3]} 39... Ke7 {[%clk 0:00:07.1]} 40.
Rg8 {[%clk 0:01:17.7]} 40... Re6 {[%clk 0:00:02.1]} 41. cxd4 {[%clk 0:01:03.5]}
1-0

[Event "*** Titled Tuesday Blitz"]
[Site "Chess.com"]
[Date "2020.11.03"]
[Round "2"]
[White "Kildepiotr"]
[Black "Margarita2907"]
[Result "1-0"]
[WhiteElo "2651"]
[BlackElo "2219"]
[TimeControl "180+1"]
[EndTime "10:18:27 PST"]
[Termination "Kildepiotr won by resignation"]

1. Nf3 {[%clk 0:03:00.9]} 1... Nf6 {[%clk 0:02:58.8]} 2. g3 {[%clk 0:03:01]}
2... c5 {[%clk 0:02:56.2]} 3. Bg2 {[%clk 0:03:01.2]} 3... Nc6 {[%clk 0:02:55.5]}
4. O-O {[%clk 0:03:01.6]} 4... e5 {[%clk 0:02:53.4]} 5. d3 {[%clk 0:03:00.8]}
5... d5 {[%clk 0:02:52.4]} 6. Nbd2 {[%clk 0:03:00.5]} 6... Bd6 {[%clk
0:02:51.6]} 7. e4 {[%clk 0:03:00]} 7... O-O {[%clk 0:02:50.9]} 8. exd5 {[%clk
0:02:57.1]} 8... Nxd5 {[%clk 0:02:49.7]} 9. Nc4 {[%clk 0:02:57.3]} 9... Bc7
{[%clk 0:02:45.6]} 10. c3 {[%clk 0:02:57.4]} 10... Rb8 {[%clk 0:02:42.1]} 11. a4
{[%clk 0:02:56.7]} 11... a6 {[%clk 0:02:40.6]} 12. Re1 {[%clk 0:02:56.8]} 12...
Re8 {[%clk 0:02:39.2]} 13. Ng5 {[%clk 0:02:38.6]} 13... h6 {[%clk 0:02:33.8]}
14. Ne4 {[%clk 0:02:28.2]} 14... b6 {[%clk 0:02:27.9]} 15. Ned6 {[%clk
0:02:24.1]} 15... Bxd6 {[%clk 0:02:21.2]} 16. Bxd5 {[%clk 0:02:23.5]} 16... Bb7
{[%clk 0:02:16.7]} 17. Qf3 {[%clk 0:02:17.9]} 17... Qc7 {[%clk 0:02:08.8]} 18.
Nxd6 {[%clk 0:02:16.3]} 18... Qxd6 {[%clk 0:02:05.4]} 19. Qxf7+ {[%clk
0:01:56.4]} 19... Kh8 {[%clk 0:02:02.7]} 20. Be4 {[%clk 0:01:56.3]} 20... Rf8
{[%clk 0:01:57.7]} 21. Qh5 {[%clk 0:01:52]} 21... Qf6 {[%clk 0:01:49.6]} 22. Be3
{[%clk 0:01:45.5]} 22... Ne7 {[%clk 0:01:46.2]} 23. Bxb7 {[%clk 0:01:29.2]}
23... Rxb7 {[%clk 0:01:47.1]} 24. Rf1 {[%clk 0:01:26.7]} 24... Nd5 {[%clk
0:01:41.8]} 25. Rae1 {[%clk 0:01:24.8]} 25... Rbf7 {[%clk 0:01:31.7]} 26. a5
{[%clk 0:01:23.1]} 26... Nxe3 {[%clk 0:01:29.9]} 27. Rxe3 {[%clk 0:01:22.1]}
27... Re7 {[%clk 0:01:19.9]} 28. axb6 {[%clk 0:01:20.6]} 28... Qxb6 {[%clk
0:01:19.3]} 29. Rxe5 {[%clk 0:01:20.2]} 29... Rxe5 {[%clk 0:01:15.1]} 30. Qxe5
{[%clk 0:01:21.1]} 30... Qxb2 {[%clk 0:01:14.8]} 31. Qxc5 {[%clk 0:01:20.7]}
31... Rb8 {[%clk 0:01:13.3]} 32. d4 {[%clk 0:01:16.1]} 32... Qa2 {[%clk
0:01:03.9]} 33. d5 {[%clk 0:01:13.6]} 33... a5 {[%clk 0:01:02.5]} 34. d6 {[%clk
0:01:12.3]} 34... a4 {[%clk 0:00:59.9]} 35. d7 {[%clk 0:01:11.9]} 35... Qg8
{[%clk 0:00:54.9]} 36. Rd1 {[%clk 0:01:09.6]} 36... Qd8 {[%clk 0:00:50.6]} 37.
Qa7 {[%clk 0:01:01.9]} 37... Rb3 {[%clk 0:00:38.7]} 38. c4 {[%clk 0:00:56]}
38... a3 {[%clk 0:00:36.1]} 39. c5 {[%clk 0:00:56.1]} 39... Rc3 {[%clk
0:00:35.3]} 40. Qb6 {[%clk 0:00:54.2]} 40... Qxb6 {[%clk 0:00:26.8]} 41. cxb6
{[%clk 0:00:52.5]} 41... a2 {[%clk 0:00:27.2]} 42. d8=Q+ {[%clk 0:00:52]} 42...
Kh7 {[%clk 0:00:26.9]} 43. b7 {[%clk 0:00:49.4]} 1-0

[Event "*** Titled Tuesday Blitz"]
[Site "Chess.com"]
[Date "2020.11.03"]
[Round "2"]
[White "akanga001"]
[Black "profofchess"]
[Result "0-1"]
[WhiteElo "1916"]
[BlackElo "2366"]
[TimeControl "180+1"]
[EndTime "10:18:29 PST"]
[Termination "profofchess won by checkmate"]

1. d4 {[%clk 0:03:00.9]} 1... Nf6 {[%clk 0:02:59.8]} 2. c4 {[%clk 0:02:59.7]}
2... e6 {[%clk 0:03:00.1]} 3. a3 {[%clk 0:02:57.8]} 3... c5 {[%clk 0:02:58.7]}
4. Nf3 {[%clk 0:02:56.2]} 4... cxd4 {[%clk 0:02:28.5]} 5. Nxd4 {[%clk
0:02:55.7]} 5... d5 {[%clk 0:02:27]} 6. e3 {[%clk 0:02:48.6]} 6... Nc6 {[%clk
0:02:11.3]} 7. Nc3 {[%clk 0:02:46.9]} 7... e5 {[%clk 0:01:54.6]} 8. Nc2 {[%clk
0:02:43.2]} 8... Be6 {[%clk 0:01:43.8]} 9. cxd5 {[%clk 0:02:37.7]} 9... Nxd5
{[%clk 0:01:44.7]} 10. Bb5 {[%clk 0:02:36.7]} 10... Nxc3 {[%clk 0:01:33.7]} 11.
Qxd8+ {[%clk 0:02:35.6]} 11... Rxd8 {[%clk 0:01:33.1]} 12. Bxc6+ {[%clk
0:02:33.4]} 12... bxc6 {[%clk 0:01:32.7]} 13. bxc3 {[%clk 0:02:33.8]} 13... Bc4
{[%clk 0:01:29.9]} 14. f3 {[%clk 0:02:25.3]} 14... Bc5 {[%clk 0:01:21.9]} 15.
Nb4 {[%clk 0:02:22]} 15... Rd6 {[%clk 0:01:11.1]} 16. Rb1 {[%clk 0:01:57.4]}
16... O-O {[%clk 0:01:11]} 17. Kf2 {[%clk 0:01:47.1]} 17... f5 {[%clk
0:01:10.7]} 18. Re1 {[%clk 0:01:39.3]} 18... Rfd8 {[%clk 0:01:02.8]} 19. a4
{[%clk 0:01:35.5]} 19... a5 {[%clk 0:00:57]} 20. Nc2 {[%clk 0:01:15.3]} 20...
Rd2+ {[%clk 0:00:55.2]} 21. Bxd2 {[%clk 0:01:08.8]} 21... Rxd2+ {[%clk
0:00:56.1]} 22. Kg3 {[%clk 0:01:08.8]} 22... Rxc2 {[%clk 0:00:54.3]} 23. Rb8+
{[%clk 0:01:07.9]} 23... Kf7 {[%clk 0:00:53.1]} 24. Rd1 {[%clk 0:01:07.2]} 24...
Be6 {[%clk 0:00:35]} 25. Rdd8 {[%clk 0:00:56.3]} 25... f4+ {[%clk 0:00:26.2]}
26. Kh4 {[%clk 0:00:40.1]} 26... Rxg2 {[%clk 0:00:17.4]} 27. Rb7+ {[%clk
0:00:39.7]} 27... Be7+ {[%clk 0:00:15.3]} 28. Kh5 {[%clk 0:00:13.9]} 28... Rxh2#
{[%clk 0:00:14.7]} 0-1